bitfinex-derivatives/quotes_ETHF0:USTF0_20260120
["timestamp","ask_amount","ask_price","bid_price","bid_amount"]
[1768897885838,0.79728328,3109.0,3107.4,0.77903053]
[1768897886136,3.22,3109.1,3107.9,2.36631598]
[1768897886331,3.38099,3109.1,3107.1,0.77903053]
[1768897886530,0.161,3109.0,3107.4,2.36631598]
[1768897886727,0.95829328,3108.8,3107.2,2.36631598]
[1768897886928,0.95830328,3108.6,3107.0,0.00326848]
[1768897887135,0.95830328,3108.6,3107.0,2.36958446]
[1768897887333,0.95830328,3108.6,3107.3,2.36631598]
[1768897887741,0.95830328,3108.6,3107.4,2.36631598]
[1768897888048,0.95830328,3108.6,3107.3,2.36631598]
[1768897888728,0.95830328,3108.5,3107.0,0.00326848]
[1768897889240,0.95830328,3108.5,3107.2,2.36631598]
[1768897889536,1.14075514,3108.9,3107.0,0.00326848]
[1768897889537,0.95832328,3108.2,3107.0,0.00326848]
[1768897889734,1.69018334,3108.1,3106.1,0.77903053]
[1768897890043,0.89290006,3108.0,3106.3,0.77903053]
[1768897890244,0.89290006,3107.9,3106.3,0.77903053]
[1768897890441,0.79728328,3108.1,3106.3,0.77903053]
[1768897890639,0.16105,3107.9,3106.5,2.36631598]
[1768897890938,0.16105,3107.9,3106.5,2.36959488]
[1768897891141,0.16105,3107.9,3106.7,2.36631598]
[1768897891343,0.8926045,3107.8,3106.7,2.36631598]
[1768897891542,0.16105,3107.9,3106.8,2.36631598]
[1768897891842,0.89261047,3107.8,3106.7,2.36631598]
[1768897892042,0.16105,3107.9,3106.7,2.36631598]
[1768897892228,0.8924649,3107.8,3106.8,2.36631598]
[1768897892431,0.16105,3107.9,3106.7,2.36631598]
[1768897892640,0.16107,3107.7,3106.5,0.0032789]
[1768897892938,0.95835328,3107.7,3106.5,0.0032789]
[1768897895744,0.79728328,3107.6,3106.5,0.0032789]
[1768897895936,1.68908727,3107.5,3106.5,0.0032789]
[1768897896248,0.79728328,3107.5,3106.5,0.0032789]
[1768897896541,2.09907842,3108.1,3106.5,0.0032789]
[1768897896738,0.89191092,3108.0,3106.5,0.78230943]
[1768897896935,0.89191092,3107.9,3106.5,0.78230943]
[1768897897138,0.89191092,3107.8,3106.5,0.78230943]
[1768897897333,0.00280007,3108.2,3106.5,0.78230943]
[1768897897737,0.00280007,3108.2,3106.7,0.77903053]
[1768897897937,0.00280007,3108.2,3106.5,0.0032789]
[1768897897938,5.32875514,3109.2,3106.9,0.77903053]
[1768897898135,2.03363566,3109.1,3106.9,0.77903053]
[1768897898435,0.89288052,3109.0,3106.9,0.94013053]
[1768897898632,0.89288052,3109.0,3107.1,0.77903053]
[1768897898947,0.00356163,3109.0,3107.1,0.94012053]
[1768897900343,1.05570201,3108.9,3107.1,0.77903053]
[1768897900547,0.89470201,3108.8,3107.1,0.77903053]
[1768897900742,0.95828328,3108.9,3107.1,0.77903053]
[1768897900743,0.89470201,3108.7,3107.1,0.77903053]
[1768897901040,0.89471863,3108.6,3107.1,0.77903053]
[1768897901247,0.95828328,3108.9,3107.1,0.77903053]
[1768897901248,0.161,3108.9,3107.1,0.77903053]
[1768897901437,0.89515971,3108.8,3107.1,0.77903053]
[1768897901743,0.89515971,3108.7,3107.1,0.77903053]
[1768897901943,0.89515971,3108.6,3107.1,0.77903053]
[1768897902148,0.161,3108.9,3107.1,0.77903053]
[1768897902349,0.89518353,3108.8,3107.1,0.77903053]
[1768897902541,0.89518353,3108.7,3107.1,0.77903053]
[1768897902742,0.89518353,3108.6,3107.1,0.77903053]
[1768897902943,0.161,3108.9,3107.1,0.77903053]
[1768897903142,0.89518064,3108.8,3107.1,0.77903053]
[1768897903346,0.89518064,3108.7,3107.1,0.77903053]
[1768897903548,0.89518064,3108.6,3107.1,0.77903053]
[1768897903745,0.161,3108.9,3107.1,0.77903053]
[1768897903950,0.89519119,3108.8,3107.1,0.77903053]
[1768897904151,0.89519119,3108.7,3107.1,0.77903053]
[1768897904445,0.89519119,3108.6,3107.1,0.77903053]
[1768897904651,0.161,3108.9,3107.1,0.77903053]
[1768897904952,0.89518551,3108.8,3107.1,0.77903053]
[1768897905151,0.89518551,3108.7,3107.1,0.77903053]
[1768897905349,0.161,3108.9,3107.1,0.77903053]
[1768897905350,0.00356163,3109.0,3107.1,0.77903053]
[1768897905551,0.89516664,3108.9,3107.1,0.94012053]
[1768897905853,0.00356163,3109.0,3107.3,1.0760794]
[1768897906053,0.89522436,3108.9,3107.3,1.0760794]
[1768897906252,0.00356163,3109.0,3107.3,1.0760794]
[1768897906460,0.89515228,3108.9,3107.3,1.0760794]
[1768897906645,0.00356163,3109.0,3107.3,1.0760794]
[1768897906953,0.89515175,3108.9,3107.3,1.0760794]
[1768897907153,0.00356163,3109.0,3107.3,1.0760794]
[1768897907354,0.8950646,3108.9,3107.3,1.0760794]
[1768897907551,0.00356163,3109.0,3107.3,1.0760794]
[1768897907752,0.89506388,3108.9,3107.3,1.0760794]
[1768897907954,0.00356163,3109.0,3107.3,1.0760794]
[1768897908154,0.89506393,3108.9,3107.3,1.0760794]
[1768897908356,0.00356163,3109.0,3107.3,1.0760794]
[1768897908656,0.89496778,3108.9,3107.3,1.0760794]
[1768897908850,0.00356163,3109.0,3107.3,1.0760794]
[1768897909055,0.89497205,3108.9,3107.3,1.0760794]
[1768897909257,0.00356163,3109.0,3107.3,1.0760794]
[1768897909554,0.00356163,3109.0,3107.3,1.2371594]
[1768897911251,0.00356163,3109.0,3107.6,1.0760794]
[1768897911458,0.00356163,3109.0,3107.6,1.2371494]
[1768897912051,0.00356163,3109.0,3107.8,1.0760794]
[1768897912652,0.00356163,3109.0,3107.8,1.2371394]
[1768897913853,0.16095,3109.9,3108.0,1.15910558]
[1768897914056,0.91274468,3109.8,3108.0,1.15910558]
[1768897914257,0.91274468,3109.7,3108.0,1.15910558]
[1768897914451,1.14075514,3110.0,3108.0,1.15910558]
[1768897914452,2.26492098,3109.6,3108.0,1.15910558]
[1768897914657,1.1912063,3109.4,3107.4,1.15910558]
[1768897914861,2.26493098,3109.3,3107.4,1.15910558]
[1768897915058,2.10395098,3109.2,3107.4,1.15910558]
[1768897915262,1.1912063,3109.2,3107.4,1.15910558]
[1768897915466,0.91224535,3109.1,3107.4,1.15910558]
[1768897915654,1.1912063,3109.2,3107.4,1.15910558]
[1768897915953,0.91224375,3109.1,3107.4,1.15910558]
[1768897916153,1.1912063,3109.2,3107.4,1.15910558]
[1768897916353,0.91218283,3109.1,3107.4,1.15910558]
[1768897916554,1.1912063,3109.2,3107.4,1.15910558]
[1768897920759,0.16099,3109.1,3107.4,1.15910558]
[1768897920964,1.3521963,3109.1,3107.4,1.15910558]
[1768897921269,1.1912063,3109.1,3107.4,1.15910558]
[1768897921466,0.16101,3108.8,3107.0,1.15910558]
[1768897922162,1.30475915,3109.4,3107.4,1.15910558]
[1768897922368,0.91211226,3109.3,3107.4,1.32018558]
[1768897922569,0.91211226,3109.2,3107.4,1.32018558]
[1768897922767,0.16400401,3109.4,3107.4,1.32018558]
[1768897922958,0.91218654,3109.3,3107.4,1.32018558]
[1768897923159,0.91218654,3109.2,3107.4,1.32018558]
[1768897923356,1.1912063,3107.8,3106.5,0.0032789]
[1768897923666,1.3522763,3107.6,3105.4,1.15910558]
[1768897923861,1.1912063,3107.4,3105.4,1.15910558]
[1768897924262,0.90909307,3107.3,3105.4,1.15910558]
[1768897924462,1.1912063,3107.4,3105.4,1.15910558]
[1768897924765,1.1912063,3107.4,3105.4,1.16149006]
[1768897924766,0.90908993,3107.3,3105.4,1.16149006]
[1768897924961,1.1912063,3107.3,3105.4,1.16149006]
[1768897925169,0.16107,3107.5,3105.4,1.16149006]
[1768897925365,0.90896502,3107.4,3105.4,1.16149006]
[1768897925566,0.16107,3107.5,3105.4,1.16149006]
[1768897925873,0.90896713,3107.4,3105.4,1.16149006]
[1768897926052,0.16107,3107.5,3105.4,1.16149006]
[1768897926261,0.90892823,3107.4,3105.4,1.16149006]
[1768897926455,0.16107,3107.5,3105.4,1.16149006]
[1768897926673,0.90892827,3107.4,3105.4,1.32267006]
[1768897926968,0.16107,3107.5,3105.4,1.32267006]
[1768897927155,0.90893144,3107.4,3105.4,1.32267006]
[1768897927359,0.16107,3107.5,3105.4,1.32267006]
[1768897927559,0.9087167,3107.4,3105.4,1.32267006]
[1768897927777,0.16107,3107.5,3105.4,1.32267006]
[1768897927962,0.90871598,3107.4,3105.4,1.32267006]
[1768897928277,0.16107,3107.5,3105.4,1.32267006]
[1768897928464,1.13724,3108.1,3105.8,1.32026558]
[1768897928770,0.90828867,3108.0,3105.8,1.32026558]
[1768897928971,0.16103,3108.3,3106.2,1.15910558]
[1768897929775,1.1912063,3108.0,3106.2,1.15910558]
[1768897929966,1.3522563,3108.0,3106.2,1.15910558]
[1768897930670,0.90816107,3107.9,3106.2,1.15910558]
[1768897930870,1.1912063,3107.8,3106.2,1.15910558]
[1768897931063,1.1912063,3107.8,3105.6,0.16117]
[1768897931264,1.3522663,3107.8,3105.7,1.15910558]
[1768897931563,1.1912063,3107.6,3105.7,1.15910558]
[1768897935467,0.16106,3107.7,3105.7,1.15910558]
[1768897936268,0.16106,3107.7,3105.7,1.32027558]
[1768897936970,1.1912063,3108.1,3105.9,1.15910558]
[1768897937276,1.1912063,3108.1,3105.9,1.32025558]
[1768897938574,0.16105,3107.9,3105.9,1.32025558]
[1768897938775,1.3522563,3107.9,3105.9,1.32025558]
[1768897940883,0.16105,3107.9,3106.2,1.15910558]
[1768897941971,1.3522363,3108.4,3106.2,1.15910558]
[1768897942177,2.09830849,3108.3,3106.4,1.15910558]
[1768897942375,0.90710219,3108.2,3106.4,1.15910558]
[1768897942672,1.1912063,3108.1,3106.4,1.15910558]
[1768897942876,1.1912063,3107.9,3105.8,0.16116]
[1768897943072,1.3522563,3107.9,3105.9,1.15910558]
[1768897945872,1.3522563,3107.9,3105.9,1.32026558]
[1768897946277,1.3522563,3107.9,3106.1,1.38577345]
[1768897946975,0.16105,3107.9,3106.1,1.38577345]
[1768897948481,0.90973542,3107.8,3106.1,1.54691345]
[1768897948780,1.13724,3108.3,3106.4,1.38577345]
[1768897948977,2.04699891,3108.3,3106.4,1.38577345]
[1768897949177,0.90975891,3108.2,3106.4,1.38577345]
[1768897949576,3.47146081,3108.2,3106.4,1.38577345]
[1768897949775,0.90975891,3108.1,3106.6,1.38577345]
[1768897949975,0.90975891,3108.1,3105.7,1.89053312]
[1768897949976,1.4244619,3108.6,3106.8,1.38577345]
[1768897950176,0.91050544,3108.5,3106.8,1.38577345]
[1768897950376,0.91050544,3108.4,3106.8,1.38577345]
[1768897950571,0.91050544,3108.3,3106.8,1.38577345]
[1768897950789,1.13724,3108.9,3107.0,1.38577345]
[1768897950977,1.13724,3109.3,3107.1,1.54686345]
[1768897951176,0.91032564,3109.2,3107.1,1.54686345]
[1768897951486,0.91032564,3109.1,3107.3,1.38577345]
[1768897951679,0.91032564,3109.0,3107.3,1.38577345]
[1768897951874,2.72570591,3109.4,3107.5,1.38577345]
[1768897952080,0.91073732,3109.3,3107.5,1.38577345]
[1768897952377,0.00302401,3109.4,3107.7,1.38577345]
[1768897952581,0.00302401,3109.4,3107.7,1.38873837]
[1768897952781,0.91041251,3109.3,3107.7,1.38873837]
[1768897952981,0.00302401,3109.4,3107.7,1.38873837]
[1768897953484,1.42748591,3109.4,3107.7,1.38873837]
[1768897953877,0.91009258,3109.3,3107.7,1.38873837]
[1768897954184,1.42748591,3109.4,3107.7,1.38873837]
[1768897954978,0.00302401,3109.4,3107.7,1.38873837]
[1768897955589,1.42748591,3109.4,3107.7,0.00296492]
[1768897956479,1.42748591,3109.4,3107.7,1.38873837]
[1768897957482,1.58845591,3109.4,3107.7,0.00296492]
[1768897958295,1.4244619,3109.2,3107.7,0.00296492]
[1768897959283,1.4244619,3108.9,3107.7,0.00296492]
[1768897959485,1.5854719,3108.7,3106.8,1.54687345]
[1768897959683,1.4244619,3108.5,3106.4,1.38577345]
[1768897959993,0.90709119,3108.4,3106.4,1.38577345]
[1768897960183,1.4244619,3108.3,3106.4,1.38577345]
[1768897960390,1.4244619,3107.9,3105.9,1.38577345]
[1768897960577,1.5855119,3107.9,3105.9,1.38919187]
[1768897961886,1.5855319,3107.7,3105.9,0.00341842]
[1768897962086,1.4244619,3107.5,3105.9,0.00341842]
[1768897962484,1.13724,3107.9,3105.9,0.00341842]
[1768897962485,1.4244619,3107.3,3105.9,0.00341842]
[1768897962682,1.4244619,3107.1,3105.9,0.00341842]
[1768897962892,1.42834421,3107.1,3105.9,0.00341842]
[1768897963188,1.42834421,3107.1,3104.9,1.38577345]
[1768897963189,1.67245344,3106.9,3104.9,1.38577345]
[1768897963386,1.51134344,3106.7,3104.9,1.38577345]
[1768897964190,1.51134344,3106.7,3104.9,1.38804725]
[1768897967092,1.67245344,3106.7,3104.9,1.38804725]
[1768897967797,1.51134344,3106.5,3104.9,0.0022738]
[1768897968891,1.67247344,3106.5,3104.9,0.0022738]
[1768897969100,1.51134344,3106.3,3104.9,0.0022738]
[1768897974903,1.67248344,3106.3,3104.9,0.0022738]
[1768897980094,1.51134344,3106.3,3104.9,0.0022738]
[1768897980404,1.58220155,3106.7,3104.9,1.49887907]
[1768897980790,1.74334155,3106.3,3104.9,0.0022738]
[1768897980995,0.26159431,3107.1,3104.9,0.0022738]
[1768897980996,1.58220155,3106.1,3104.9,0.0022738]
[1768897983206,0.16114,3106.2,3104.9,0.0022738]
[1768897984105,1.58220155,3106.5,3104.9,0.0022738]
[1768897985402,0.16111,3106.8,3104.9,0.0022738]
[1768897985403,0.16111,3106.8,3104.9,1.49887907]
[1768897986312,1.74331155,3106.8,3104.9,1.66008907]
[1768897986998,0.00388231,3107.1,3105.1,1.49660527]
[1768897987401,0.00388231,3107.1,3105.3,1.49660527]
[1768897988494,0.00388231,3107.1,3105.3,1.65778527]
[1768897988802,0.00388231,3107.1,3105.6,1.65777527]
[1768897989505,1.58220155,3108.5,3106.2,1.49660527]
[1768897989704,1.58220155,3108.0,3106.2,1.49660527]
[1768897989905,1.58220155,3107.8,3105.6,1.49660527]
[1768897990097,1.58220155,3107.6,3105.6,1.49660527]
[1768897990297,1.58220155,3107.4,3105.6,1.49660527]
[1768897990503,0.91298282,3107.3,3105.6,1.49660527]
[1768897990703,1.58220155,3107.2,3105.6,1.49660527]
[1768897990906,1.58220155,3107.0,3105.1,1.49660527]
[1768897991105,1.58220155,3106.8,3105.1,1.49660527]
[1768897991404,1.58220155,3106.6,3104.9,0.0022738]
[1768897991606,1.58220155,3106.6,3103.7,4.05146323]
[1768897991804,1.58220155,3104.5,3101.9,1.65796527]
[1768897992104,1.58220155,3104.2,3101.9,1.49660527]
[1768897992304,1.58220155,3104.0,3101.9,1.49660527]
[1768897992509,0.91448698,3103.9,3101.9,1.49660527]
[1768897992697,1.58220155,3103.7,3101.9,1.49920732]
[1768897992897,3.00097179,3103.6,3101.9,0.00260205]
[1768897993099,1.58220155,3103.4,3101.9,0.00260205]
[1768897993302,1.29852,3103.6,3100.0,1.89453771]
[1768897993303,1.58220155,3103.2,3100.9,1.49660527]
[1768897993512,1.58220155,3102.7,3100.4,1.49660527]
[1768897993706,1.58220155,3102.3,3099.9,1.49660527]
[1768897993898,3.00097179,3102.2,3099.9,1.49660527]
[1768897994108,1.41877024,3102.1,3099.9,1.49660527]
[1768897994411,1.58220155,3101.9,3099.9,0.00324125]
[1768897994615,1.58220155,3100.8,3097.2,1.65821527]
[1768897994806,1.58220155,3100.6,3097.2,1.65821527]
[1768897995113,0.50428326,3100.5,3097.5,1.49660527]
[1768897995314,1.58220155,3099.9,3096.7,1.49660527]
[1768897995505,1.58220155,3099.7,3096.7,1.49904286]
[1768897995821,1.58220155,3099.5,3096.7,1.49904286]
[1768897996009,1.58220155,3099.3,3096.7,1.49904286]
[1768897996319,1.58220155,3099.1,3096.7,0.00243759]
[1768897997814,1.58220155,3099.1,3096.7,1.49904286]
[1768897998008,1.58220155,3099.7,3097.1,1.49660527]
[1768897999713,1.58220155,3099.7,3097.1,4.71984652]
[1768897999911,0.00286437,3099.9,3097.2,4.71984652]
[1768898000218,0.00286437,3099.9,3097.4,4.71984652]
[1768898000413,0.00286437,3099.9,3098.2,3.22324125]
[1768898000711,1.58220155,3102.0,3098.8,3.22324125]
[1768898000904,1.58220155,3102.0,3098.9,1.65812527]
[1768898001104,1.58220155,3102.0,3099.0,1.49660527]
[1768898001304,0.16133,3102.6,3099.4,1.49660527]
[1768898001509,1.58220155,3102.3,3099.4,1.49660527]
[1768898001709,1.74730643,3102.3,3099.4,1.4990679]
[1768898002118,1.74355155,3102.2,3099.4,1.4990679]
[1768898002312,1.58220155,3101.8,3099.4,1.4990679]
[1768898003712,0.00375488,3102.3,3099.8,3.22324125]
[1768898004018,1.79463789,3102.2,3099.9,1.66549437]
[1768898005109,1.79463789,3102.2,3100.0,4.88873562]
[1768898005309,0.00375488,3102.3,3100.1,1.66549437]
[1768898005714,0.00375488,3102.3,3100.3,1.66549437]
[1768898006012,0.00375488,3102.3,3100.3,4.88873562]
[1768898006215,0.00375488,3102.3,3100.8,1.66549437]
[1768898006518,0.00375488,3102.3,3101.1,1.66549437]
[1768898007018,0.00375488,3102.3,3101.3,3.22324125]
[1768898007316,0.1613,3103.2,3101.6,3.22324125]
[1768898007505,1.63328789,3103.4,3101.0,1.66549437]
[1768898007703,2.05371198,3104.0,3101.2,1.66549437]
[1768898007903,1.79454789,3104.0,3101.3,1.66549437]
[1768898008103,0.16126,3103.9,3101.3,1.66549437]
[1768898008308,1.63328789,3103.8,3101.3,1.66911074]
[1768898008511,0.00345512,3103.9,3101.3,1.66911074]
[1768898008512,0.16131,3102.9,3101.3,0.00361637]
[1768898009014,0.16131,3102.9,3101.4,3.22324125]
[1768898009317,0.16131,3102.9,3101.3,0.00361637]
[1768898011017,0.16133,3102.5,3101.3,0.00361637]
[1768898011315,1.63328789,3102.5,3100.1,1.66549437]
[1768898011615,1.79462789,3102.4,3100.1,1.66549437]
[1768898012122,1.79462789,3102.4,3100.3,1.66549437]
[1768898012413,1.79462789,3102.4,3100.3,1.66934976]
[1768898012414,1.63328789,3102.4,3100.3,1.66934976]
[1768898013420,0.16135,3102.2,3100.3,1.66934976]
[1768898013621,0.16135,3102.2,3100.3,4.89259101]
[1768898013819,0.16135,3102.2,3100.4,4.88873562]
[1768898014019,1.63328789,3102.4,3100.3,0.00385539]
[1768898014713,0.16139,3101.5,3100.3,0.00385539]
[1768898014915,1.79854091,3101.5,3100.3,0.00385539]
[1768898015121,1.63328789,3101.4,3099.2,1.66549437]
[1768898015508,0.16143,3100.7,3098.6,1.66549437]
[1768898015910,0.16143,3100.7,3098.9,3.22324125]
[1768898016115,0.16143,3100.7,3099.0,3.22324125]
[1768898016314,0.16143,3100.7,3099.1,3.22324125]
[1768898016521,0.16143,3100.7,3099.0,3.22324125]
[1768898017428,0.16143,3100.7,3098.9,0.00252574]
[1768898017721,0.16143,3100.7,3098.9,3.22576699]
[1768898018111,0.16143,3100.7,3098.9,0.00252574]
[1768898018620,0.16144,3100.5,3098.9,0.00252574]
[1768898019024,0.00386302,3101.5,3098.9,0.00252574]
[1768898019025,0.16145,3100.3,3098.9,0.00252574]
[1768898019924,1.63328789,3100.4,3098.9,0.00252574]
[1768898020128,0.16148,3099.6,3097.5,1.66549437]
[1768898020330,1.63328789,3100.5,3097.5,1.66549437]
[1768898020523,0.16145,3100.3,3098.1,1.66549437]
[1768898020919,1.63328789,3100.5,3098.2,1.66549437]
[1768898021123,0.16142,3100.9,3098.5,1.66549437]
[1768898021319,0.50479761,3100.8,3098.5,1.82703437]
[1768898021535,0.50479761,3100.7,3098.7,1.66549437]
[1768898021724,0.16142,3100.9,3098.7,1.66549437]
[1768898021920,0.50478731,3100.8,3098.9,4.88873562]
[1768898022124,1.63328789,3101.4,3099.0,1.66549437]
[1768898022333,1.41365388,3101.3,3099.3,1.66549437]
[1768898022533,1.63328789,3101.4,3099.3,1.66549437]
[1768898022534,0.50472208,3101.2,3099.3,1.66549437]
[1768898022731,0.50472208,3101.1,3099.4,3.22324125]
[1768898023036,0.1614,3101.3,3099.4,3.22324125]
[1768898023236,0.50472881,3101.2,3099.5,3.22324125]
[1768898023427,0.50472881,3101.1,3099.5,3.22324125]
[1768898023734,0.1614,3101.3,3099.3,1.66549437]
[1768898023929,0.50472407,3101.2,3099.6,1.80265586]
[1768898024123,0.50472407,3101.1,3099.6,1.80265586]
[1768898024331,0.50472339,3101.0,3099.6,5.02589711]
[1768898024637,0.1614,3101.3,3099.6,5.02589711]
[1768898024932,0.50472327,3101.2,3099.6,5.02589711]
[1768898025131,0.16145,3100.4,3098.7,1.80265586]
[1768898025323,1.41382426,3100.3,3098.2,1.805958]
[1768898025526,1.41382426,3100.2,3098.2,1.805958]
[1768898025730,1.41382426,3100.1,3098.4,1.80265586]
[1768898025921,0.50472327,3100.0,3098.5,2.27326241]
[1768898026124,0.50472327,3099.9,3098.5,1.80265586]
[1768898026326,0.50472327,3099.9,3098.7,1.80265586]
[1768898026625,0.16144,3100.5,3098.7,1.80265586]
[1768898026824,1.41476107,3100.4,3098.7,1.80265586]
[1768898027025,1.41476107,3100.3,3098.8,1.80265586]
[1768898027228,0.50490734,3100.2,3098.8,1.80265586]
[1768898027425,0.50483403,3100.1,3098.8,1.80265586]
[1768898027624,0.16144,3100.5,3098.8,1.80265586]
[1768898027823,1.41576534,3100.4,3099.0,2.27326241]
[1768898028030,1.41576534,3100.3,3099.0,1.80265586]
[1768898028239,0.50484067,3100.2,3099.0,1.80265586]
[1768898028432,1.41628993,3100.1,3099.0,1.80265586]
[1768898028635,0.50484237,3100.0,3099.0,1.80265586]
[1768898028834,0.50484237,3100.0,3099.2,0.47060655]
[1768898029035,0.50484237,3100.0,3099.1,1.80265586]
[1768898029233,0.50484237,3100.0,3099.2,0.47060655]
[1768898029537,0.50484237,3100.0,3098.6,1.80265586]
[1768898029938,0.50484237,3100.0,3098.6,2.27326241]
[1768898030637,0.50484237,3100.0,3098.7,1.80265586]
[1768898030940,0.16145,3100.3,3099.0,1.80265586]
[1768898031132,1.41671832,3100.2,3099.0,1.80265586]
[1768898031332,1.41671832,3100.1,3099.0,1.80265586]
[1768898031537,1.57792511,3100.0,3098.4,1.80265586]
[1768898031835,1.41646511,3099.9,3098.5,1.80265586]
[1768898032038,1.41646511,3099.8,3098.6,1.80265586]
[1768898032335,1.41646511,3099.7,3098.7,1.80265586]
[1768898032537,0.50487974,3099.6,3098.7,2.27326241]
[1768898032736,0.504926,3099.5,3098.7,2.27326241]
[1768898032938,0.16146,3100.0,3098.8,2.27326241]
[1768898033134,1.41613549,3099.9,3098.8,1.80265586]
[1768898033346,1.41613549,3099.8,3098.8,2.27326241]
[1768898033542,0.50492512,3099.7,3098.8,2.27326241]
[1768898033729,0.50492512,3099.6,3098.8,2.27326241]
[1768898033934,0.16146,3100.0,3098.8,2.27326241]
[1768898034132,1.57733582,3099.9,3098.8,2.27326241]
[1768898034327,5.46567003,3101.1,3098.3,1.75144232]
[1768898034328,0.16148,3099.7,3098.3,1.75144232]
[1768898034528,0.5049268,3099.6,3098.3,1.75144232]
[1768898034739,0.5049268,3099.5,3098.3,2.22204887]
[1768898034942,1.13724,3100.3,3098.3,2.22204887]
[1768898035141,0.1615,3099.3,3098.2,0.00330214]
[1768898035338,0.50497093,3099.2,3098.2,0.00330214]
[1768898035739,0.50497093,3099.2,3098.2,0.47390869]
[1768898036245,0.50497093,3099.2,3098.3,0.47060655]
[1768898036439,0.50497093,3099.2,3098.3,1.75144232]
[1768898037641,0.50497093,3099.2,3098.3,2.22204887]
[1768898037843,0.50497093,3099.2,3098.5,0.47060655]
[1768898038243,0.50497093,3099.2,3098.2,0.00330214]
[1768898038440,0.50497093,3099.2,3098.3,0.47060655]
[1768898038744,0.50497093,3099.2,3098.3,2.22204887]
[1768898038946,0.50497093,3099.2,3098.4,0.47060655]
[1768898039439,0.50497093,3099.2,3098.3,1.75144232]
[1768898039747,0.50497093,3099.2,3098.8,1.75144232]
[1768898039939,0.50497093,3099.2,3098.9,0.47060655]
[1768898040143,0.00371795,3099.3,3098.9,0.47060655]
[1768898040445,0.16147,3099.8,3098.8,1.75144232]
[1768898040747,0.16147,3099.8,3098.2,0.00330214]
[1768898040748,0.16144,3100.4,3099.1,1.75144232]
[1768898040946,1.40779672,3100.3,3099.1,1.75144232]
[1768898041148,1.40779672,3100.2,3099.3,1.75144232]
[1768898041340,1.40779672,3100.1,3099.4,1.75144232]
[1768898041540,0.49533109,3100.0,3099.4,2.22204887]
[1768898041834,1.13724,3101.1,3099.5,0.47060655]
[1768898042148,0.16147,3099.9,3098.4,1.75144232]
[1768898042345,0.91322503,3099.8,3098.4,1.75144232]
[1768898042547,0.16149,3099.5,3098.4,1.75144232]
[1768898042848,0.91322503,3099.4,3098.4,1.75144232]
[1768898043047,0.91322503,3099.4,3098.5,0.47060655]
[1768898043243,0.91322503,3099.4,3098.6,0.47060655]
[1768898043739,0.91322503,3099.4,3098.4,1.75144232]
[1768898044047,0.00244371,3099.5,3099.1,2.22204887]
[1768898044247,0.00244371,3099.5,3099.4,0.47060655]
[1768898044442,1.13724,3100.0,3099.1,1.75144232]
[1768898044647,1.13497355,3100.5,3099.1,1.75144232]
[1768898044848,1.68407922,3100.8,3099.1,1.75144232]
[1768898045243,1.68407922,3100.9,3099.1,1.75144232]
[1768898045446,0.00378813,3100.9,3099.1,1.75144232]
[1768898046151,0.00378813,3100.9,3099.3,1.91294232]
[1768898046350,1.90664421,3100.9,3098.6,1.75144232]
[1768898046648,0.16147,3099.9,3098.2,0.00330214]
[1768898047042,1.68407922,3100.3,3098.2,1.75474446]
[1768898047348,0.16143,3100.7,3098.2,1.75474446]
[1768898047545,0.16143,3100.7,3098.4,1.75144232]
[1768898047737,1.84550922,3100.7,3098.4,1.91298232]
[1768898048139,1.68786735,3100.9,3098.6,1.91297232]
[1768898048449,0.00378813,3100.9,3098.8,1.75144232]
[1768898049650,1.68786735,3100.9,3098.8,1.75144232]
[1768898049958,0.00378813,3100.9,3098.8,1.75144232]
[1768898050251,0.00378813,3100.9,3099.0,1.75144232]
[1768898050944,1.84928735,3100.9,3099.0,1.75144232]
[1768898051261,0.16142,3100.8,3099.0,1.75144232]
[1768898051545,0.16143,3100.6,3099.0,1.75144232]
[1768898052649,0.00378813,3100.9,3099.0,1.75144232]
[1768898052846,0.16142,3100.8,3099.0,1.75144232]
[1768898053152,0.16143,3100.7,3099.0,1.75144232]
[1768898053357,0.16145,3100.2,3098.3,1.75144232]
[1768898053950,0.16146,3100.1,3098.3,1.75144232]
[1768898054246,1.88893112,3100.5,3098.3,1.75144232]
[1768898054247,1.68407922,3100.2,3098.3,1.75144232]
[1768898054457,0.16148,3099.7,3098.3,1.75144232]
[1768898055446,0.16148,3099.6,3098.3,1.75144232]
[1768898055656,0.16148,3099.6,3098.2,0.00330214]
[1768898055851,0.90859262,3099.5,3098.2,0.00330214]
[1768898056162,0.90859262,3099.4,3098.2,0.00330214]
[1768898056361,0.90859262,3099.3,3098.2,0.00330214]
[1768898056660,0.16149,3099.5,3098.2,0.00330214]
[1768898056966,0.90848822,3099.4,3098.2,0.00330214]
[1768898057260,0.90848822,3099.3,3098.2,0.00330214]
[1768898057555,0.16149,3099.5,3098.2,0.00330214]
[1768898057746,0.90835597,3099.4,3098.2,0.00330214]
[1768898057941,0.90835597,3099.3,3098.2,1.75474446]
[1768898058154,0.16146,3100.1,3098.2,1.75474446]
[1768898058357,0.16147,3099.8,3098.2,1.75474446]
[1768898058555,0.90831221,3099.7,3098.2,0.00330214]
[1768898058755,1.06980221,3099.6,3098.2,0.00330214]
[1768898058957,0.90831221,3099.5,3098.2,0.00330214]
[1768898059250,0.90831221,3099.4,3098.2,1.75474446]
[1768898059453,1.84552922,3100.2,3098.2,1.75474446]
[1768898059643,1.06968437,3100.1,3098.2,1.75474446]
[1768898059844,0.90822437,3100.0,3098.2,1.75474446]
[1768898060254,0.16143,3100.8,3098.2,1.75474446]
[1768898060459,0.9084417,3100.7,3098.2,1.75474446]
[1768898060664,1.0698717,3100.6,3098.2,1.75474446]
[1768898060957,0.9084417,3100.5,3098.2,1.75474446]
[1768898061160,0.9084417,3100.4,3098.2,1.75474446]
[1768898061352,0.9084417,3100.3,3098.2,1.75474446]
[1768898061551,0.9084417,3100.2,3098.2,1.91630446]
[1768898061753,0.16143,3100.6,3098.2,1.91630446]
[1768898061960,0.908642,3100.5,3098.2,1.91630446]
[1768898062258,0.908642,3100.4,3098.2,1.91630446]
[1768898062448,0.908642,3100.3,3098.2,1.91630446]
[1768898062650,0.16143,3100.6,3098.4,1.75144232]
[1768898062848,0.90863125,3100.5,3098.4,1.91299232]
[1768898063059,1.07008125,3100.4,3098.4,1.91299232]
[1768898063257,0.90866725,3100.3,3098.4,1.91299232]
[1768898063560,0.16145,3100.4,3098.4,1.91299232]
[1768898063760,0.90856851,3100.3,3098.4,1.91299232]
[1768898064060,0.16145,3100.4,3098.4,1.91299232]
[1768898064652,0.90850389,3100.3,3098.4,1.91299232]
[1768898064850,0.16145,3100.4,3098.4,1.91299232]
[1768898065059,0.90851085,3100.3,3098.4,1.91299232]
[1768898065264,0.16145,3100.4,3098.4,1.91299232]
[1768898066654,0.00378813,3100.9,3098.6,2.20668091]
[1768898066962,0.90866954,3100.8,3098.6,2.36822091]
[1768898067150,0.90866954,3100.7,3098.6,2.36822091]
[1768898067350,0.16520813,3100.9,3099.0,2.20668091]
[1768898067551,0.90896183,3100.8,3099.0,2.20668091]